[Event "Titled Tuesday Blitz March 14 Late 2023"]
[White "Sarkar, Justin"]
[Black "Burke, Paul"]
[WhiteFideId "2010011"]
[BlackFideId "2605767"]
[WhiteElo "2189"]
[BlackElo "1852"]
[Result "0-1"]
[Round "06"]
[TimeControl "180+2"]
[Date "2023.03.14"]
[WhiteClock "0:00:35"]
[BlackClock "0:00:13"]

1. e4 {[%clk 0:03:00]}  e5 {[%clk 0:03:00]} 2. Nf3 {[%clk 0:02:58]}  Nc6 {[%clk 0:03:00]} 3. Bb5 {[%clk 0:02:57]}  f5 {[%clk 0:02:59]} 4. d4 {[%clk 0:02:46]}  fxe4 {[%clk 0:02:59]} 5. Bxc6 {[%clk 0:02:39]}  dxc6 {[%clk 0:02:58]} 6. Nxe5 {[%clk 0:02:39]}  Nf6 {[%clk 0:02:57]} 7. O-O {[%clk 0:02:36]}  Bd6 {[%clk 0:02:57]} 8. Nc3 {[%clk 0:02:34]}  O-O {[%clk 0:02:56]} 9. Qe2 {[%clk 0:02:29]}  Bf5 {[%clk 0:02:54]} 10. Bg5 {[%clk 0:02:25]}  Qe8 {[%clk 0:02:24]} 11. Bxf6 {[%clk 0:01:54]}  gxf6 {[%clk 0:02:01]} 12. Nc4 {[%clk 0:01:52]}  Qg6 {[%clk 0:01:57]} 13. Nxd6 {[%clk 0:01:26]}  cxd6 {[%clk 0:01:57]} 14. d5 {[%clk 0:01:23]}  c5 {[%clk 0:01:53]} 15. Qe3 {[%clk 0:01:15]}  Rad8 {[%clk 0:01:39]} 16. Ne2 {[%clk 0:01:12]}  Kh8 {[%clk 0:01:26]} 17. Ng3 {[%clk 0:01:05]}  Rfe8 {[%clk 0:01:19]} 18. c4 {[%clk 0:00:54]}  Bd7 {[%clk 0:01:17]} 19. Qf4 {[%clk 0:00:52]}  f5 {[%clk 0:01:05]} 20. f3 {[%clk 0:00:49]}  Rf8 {[%clk 0:00:35]} 21. fxe4 {[%clk 0:00:43]}  fxe4 {[%clk 0:00:33]} 22. Qxf8+ {[%clk 0:00:34]}  Rxf8 {[%clk 0:00:32]} 23. Rxf8+ {[%clk 0:00:35]}  Kg7 {[%clk 0:00:31]} 24. Raf1 {[%clk 0:00:35]}  Be8 {[%clk 0:00:13]} 0-1


[Site "https://www.chess.com"]

[Event "Titled Tuesday Blitz March 14 Late 2023"]
[White "tandercat"]
[Black "Kornyukov, Alexey"]
[BlackFideId "4150457"]
[WhiteElo "1941"]
[BlackElo "2352"]
[Result "0-1"]
[Round "06"]
[TimeControl "180+2"]
[Date "2023.03.14"]
[WhiteClock "0:00:23"]
[BlackClock "0:00:27"]

1. d4 {[%clk 0:03:00]}  d5 {[%clk 0:02:59]} 2. c4 {[%clk 0:03:00]}  e6 {[%clk 0:02:57]} 3. Nc3 {[%clk 0:03:00]}  c6 {[%clk 0:02:57]} 4. cxd5 {[%clk 0:02:56]}  exd5 {[%clk 0:02:57]} 5. Bf4 {[%clk 0:02:56]}  Bd6 {[%clk 0:02:57]} 6. Bxd6 {[%clk 0:02:54]}  Qxd6 {[%clk 0:02:57]} 7. e3 {[%clk 0:02:54]}  f5 {[%clk 0:02:57]} 8. Bd3 {[%clk 0:02:49]}  Nf6 {[%clk 0:02:57]} 9. Nf3 {[%clk 0:02:48]}  O-O {[%clk 0:02:56]} 10. Qc2 {[%clk 0:02:48]}  Ne4 {[%clk 0:02:54]} 11. O-O {[%clk 0:02:47]}  Nd7 {[%clk 0:02:48]} 12. Rab1 {[%clk 0:02:40]}  a5 {[%clk 0:02:47]} 13. a3 {[%clk 0:02:39]}  Rf6 {[%clk 0:02:33]} 14. b4 {[%clk 0:02:34]}  axb4 {[%clk 0:02:33]} 15. axb4 {[%clk 0:02:33]}  Rh6 {[%clk 0:02:33]} 16. g3 {[%clk 0:01:51]}  g5 {[%clk 0:02:08]} 17. Ne2 {[%clk 0:01:46]}  g4 {[%clk 0:02:03]} 18. Bxe4 {[%clk 0:01:33]}  fxe4 {[%clk 0:01:56]} 19. Ne1 {[%clk 0:01:26]}  Nf8 {[%clk 0:01:35]} 20. Ng2 {[%clk 0:01:22]}  b6 {[%clk 0:01:23]} 21. Nef4 {[%clk 0:01:20]}  Ba6 {[%clk 0:01:22]} 22. Rfc1 {[%clk 0:01:18]}  Bc4 {[%clk 0:01:19]} 23. Ra1 {[%clk 0:01:14]}  Rxa1 {[%clk 0:01:13]} 24. Rxa1 {[%clk 0:01:13]}  Rf6 {[%clk 0:01:11]} 25. Ra8 {[%clk 0:01:09]}  Qxb4 {[%clk 0:01:08]} 26. h4 {[%clk 0:00:55]}  gxh3 {[%clk 0:01:06]} 27. Nxh3 {[%clk 0:00:55]}  Bd3 {[%clk 0:00:52]} 28. Qa2 {[%clk 0:00:50]}  Rf7 {[%clk 0:00:38]} 29. Nhf4 {[%clk 0:00:38]}  Bc4 {[%clk 0:00:36]} 30. Qa1 {[%clk 0:00:32]}  Qd6 {[%clk 0:00:32]} 31. Ra7 {[%clk 0:00:29]}  Rxa7 {[%clk 0:00:28]} 32. Qxa7 {[%clk 0:00:28]}  b5 {[%clk 0:00:29]} 33. Qa8 {[%clk 0:00:24]}  b4 {[%clk 0:00:28]} 34. Qd8 {[%clk 0:00:23]}  Qxd8 {[%clk 0:00:27]} 0-1


[Site "https://www.chess.com"]

[Event "Titled Tuesday Blitz March 14 Late 2023"]
[White "Torres Dominguez, David"]
[Black "Perske, Thore"]
[WhiteFideId "2220857"]
[BlackFideId "12902195"]
[WhiteElo "1999"]
[BlackElo "2336"]
[Result "1/2-1/2"]
[Round "06"]
[TimeControl "180+2"]
[Date "2023.03.14"]
[WhiteClock "0:00:01"]
[BlackClock "0:00:09"]

1. e4 {[%clk 0:02:43]}  e6 {[%clk 0:02:39]} 2. d4 {[%clk 0:02:41]}  d5 {[%clk 0:02:39]} 3. exd5 {[%clk 0:02:41]}  exd5 {[%clk 0:02:40]} 4. Bd3 {[%clk 0:02:40]}  Nc6 {[%clk 0:02:40]} 5. c3 {[%clk 0:02:38]}  Bd6 {[%clk 0:02:40]} 6. Qf3 {[%clk 0:02:36]}  Qh4 {[%clk 0:02:30]} 7. h3 {[%clk 0:02:31]}  h5 {[%clk 0:02:15]} 8. g3 {[%clk 0:02:24]}  Qe7+ {[%clk 0:02:13]} 9. Ne2 {[%clk 0:02:24]}  Be6 {[%clk 0:02:05]} 10. Bf4 {[%clk 0:02:23]}  O-O-O {[%clk 0:02:03]} 11. Bxd6 {[%clk 0:02:19]}  Qxd6 {[%clk 0:02:01]} 12. Nd2 {[%clk 0:02:19]}  Nf6 {[%clk 0:01:59]} 13. O-O-O {[%clk 0:02:12]}  Qd7 {[%clk 0:01:57]} 14. Nf4 {[%clk 0:02:07]}  Bf5 {[%clk 0:01:57]} 15. Bxf5 {[%clk 0:01:47]}  Qxf5 {[%clk 0:01:58]} 16. Nd3 {[%clk 0:01:47]}  Qxf3 {[%clk 0:01:53]} 17. Nxf3 {[%clk 0:01:47]}  Ne4 {[%clk 0:01:50]} 18. Rhe1 {[%clk 0:01:42]}  f6 {[%clk 0:01:40]} 19. Re2 {[%clk 0:01:38]}  b6 {[%clk 0:01:37]} 20. Rde1 {[%clk 0:01:37]}  g5 {[%clk 0:01:36]} 21. Nd2 {[%clk 0:01:27]}  Nd6 {[%clk 0:01:31]} 22. Nf1 {[%clk 0:01:24]}  Rde8 {[%clk 0:01:23]} 23. Rxe8+ {[%clk 0:01:17]}  Rxe8 {[%clk 0:01:24]} 24. Rxe8+ {[%clk 0:01:13]}  Nxe8 {[%clk 0:01:25]} 25. f4 {[%clk 0:01:08]}  Kd7 {[%clk 0:01:19]} 26. fxg5 {[%clk 0:01:08]}  fxg5 {[%clk 0:01:20]} 27. h4 {[%clk 0:01:05]}  g4 {[%clk 0:01:12]} 28. Nf4 {[%clk 0:01:02]}  Nf6 {[%clk 0:01:12]} 29. Ne3 {[%clk 0:01:00]}  Ne7 {[%clk 0:01:12]} 30. Kc2 {[%clk 0:00:57]}  c6 {[%clk 0:01:10]} 31. Kd3 {[%clk 0:00:56]}  Kd6 {[%clk 0:01:09]} 32. a3 {[%clk 0:00:49]}  c5 {[%clk 0:01:08]} 33. c4 {[%clk 0:00:45]}  cxd4 {[%clk 0:01:00]} 34. Nexd5 {[%clk 0:00:41]}  Nexd5 {[%clk 0:00:54]} 35. cxd5 {[%clk 0:00:35]}  Ke5 {[%clk 0:00:52]} 36. d6 {[%clk 0:00:31]}  Kxd6 {[%clk 0:00:21]} 37. Kxd4 {[%clk 0:00:30]}  a6 {[%clk 0:00:18]} 38. a4 {[%clk 0:00:30]}  b5 {[%clk 0:00:04]} 39. axb5 {[%clk 0:00:31]}  axb5 {[%clk 0:00:05]} 40. b4 {[%clk 0:00:31]}  Nd7 {[%clk 0:00:04]} 41. Nxh5 {[%clk 0:00:26]}  Ne5 {[%clk 0:00:04]} 42. Nf6 {[%clk 0:00:23]}  Nc6+ {[%clk 0:00:04]} 43. Kc3 {[%clk 0:00:22]}  Ne5 {[%clk 0:00:03]} 44. Ne4+ {[%clk 0:00:21]}  Kd5 {[%clk 0:00:04]} 45. Nf6+ {[%clk 0:00:21]}  Ke6 {[%clk 0:00:04]} 46. Ne4 {[%clk 0:00:21]}  Kd5 {[%clk 0:00:04]} 47. Nf6+ {[%clk 0:00:21]}  Ke6 {[%clk 0:00:05]} 48. Nh5 {[%clk 0:00:20]}  Kf5 {[%clk 0:00:05]} 49. Kd4 {[%clk 0:00:19]}  Nd7 {[%clk 0:00:04]} 50. Nf4 {[%clk 0:00:18]}  Nf6 {[%clk 0:00:03]} 51. h5 {[%clk 0:00:17]}  Ne4 {[%clk 0:00:03]} 52. h6 {[%clk 0:00:16]}  Nxg3 {[%clk 0:00:02]} 53. h7 {[%clk 0:00:16]}  Kxf4 {[%clk 0:00:03]} 54. h8=Q {[%clk 0:00:15]}  Nf5+ {[%clk 0:00:04]} 55. Kc5 {[%clk 0:00:14]}  g3 {[%clk 0:00:05]} 56. Qb8+ {[%clk 0:00:12]}  Kf3 {[%clk 0:00:05]} 57. Kxb5 {[%clk 0:00:10]}  g2 {[%clk 0:00:04]} 58. Qf8 {[%clk 0:00:08]}  Kf4 {[%clk 0:00:02]} 59. Qg8 {[%clk 0:00:08]}  Ng3 {[%clk 0:00:02]} 60. Qf7+ {[%clk 0:00:06]}  Ke3 {[%clk 0:00:03]} 61. Qe6+ {[%clk 0:00:05]}  Kf3 {[%clk 0:00:03]} 62. Qc6+ {[%clk 0:00:04]}  Kf2 {[%clk 0:00:02]} 63. Qf6+ {[%clk 0:00:03]}  Ke3 {[%clk 0:00:02]} 64. Qb6+ {[%clk 0:00:03]}  Kf3 {[%clk 0:00:02]} 65. Ka6 {[%clk 0:00:03]}  Ne2 {[%clk 0:00:02]} 66. b5 {[%clk 0:00:02]}  Nf4 {[%clk 0:00:02]} 67. Qg1 {[%clk 0:00:02]}  Ne2 {[%clk 0:00:02]} 68. Qd1 {[%clk 0:00:02]}  g1=Q {[%clk 0:00:02]} 69. Qxg1 {[%clk 0:00:02]}  Nxg1 {[%clk 0:00:03]} 70. b6 {[%clk 0:00:02]}  Ne2 {[%clk 0:00:04]} 71. b7 {[%clk 0:00:03]}  Nd4 {[%clk 0:00:05]} 72. b8=Q {[%clk 0:00:02]}  Ke4 {[%clk 0:00:06]} 73. Qe8+ {[%clk 0:00:02]}  Kd5 {[%clk 0:00:06]} 74. Kb6 {[%clk 0:00:03]}  Ne6 {[%clk 0:00:06]} 75. Qg8 {[%clk 0:00:03]}  Ke5 {[%clk 0:00:07]} 76. Kc6 {[%clk 0:00:02]}  Nd4+ {[%clk 0:00:07]} 77. Kc5 {[%clk 0:00:01]}  Ne6+ {[%clk 0:00:07]} 78. Kb4 {[%clk 0:00:01]}  Nd4 {[%clk 0:00:08]} 79. Qg1 {[%clk 0:00:01]}  Ne6 {[%clk 0:00:08]} 80. Qe3+ {[%clk 0:00:02]}  Kd5 {[%clk 0:00:09]} 81. Kb5 {[%clk 0:00:01]}  Nd4+ {[%clk 0:00:09]} 1/2-1/2


[Site "https://www.chess.com"]

[Event "Titled Tuesday Blitz March 14 Late 2023"]
[White "mestrefeitosa19"]
[Black "JackRodgers"]
[WhiteElo "2239"]
[BlackElo "2486"]
[Result "0-1"]
[Round "06"]
[TimeControl "180+2"]
[Date "2023.03.14"]
[WhiteClock "0:00:01"]
[BlackClock "0:00:16"]

1. c4 {[%clk 0:03:00]}  c5 {[%clk 0:02:56]} 2. Nc3 {[%clk 0:03:00]}  g6 {[%clk 0:02:55]} 3. Nf3 {[%clk 0:03:01]}  Bg7 {[%clk 0:02:54]} 4. e3 {[%clk 0:03:00]}  Nf6 {[%clk 0:02:53]} 5. d4 {[%clk 0:03:00]}  cxd4 {[%clk 0:02:54]} 6. exd4 {[%clk 0:03:01]}  d5 {[%clk 0:02:55]} 7. h3 {[%clk 0:02:58]}  O-O {[%clk 0:02:54]} 8. Be3 {[%clk 0:02:58]}  Nc6 {[%clk 0:02:54]} 9. a3 {[%clk 0:02:49]}  a6 {[%clk 0:02:40]} 10. Be2 {[%clk 0:02:39]}  dxc4 {[%clk 0:02:38]} 11. Bxc4 {[%clk 0:02:39]}  b5 {[%clk 0:02:38]} 12. Ba2 {[%clk 0:02:39]}  Bb7 {[%clk 0:02:39]} 13. O-O {[%clk 0:02:39]}  e6 {[%clk 0:02:23]} 14. d5 {[%clk 0:02:24]}  exd5 {[%clk 0:02:20]} 15. Nxd5 {[%clk 0:02:23]}  Nxd5 {[%clk 0:02:20]} 16. Bxd5 {[%clk 0:02:16]}  Bxb2 {[%clk 0:02:19]} 17. Ra2 {[%clk 0:02:16]}  Bg7 {[%clk 0:02:16]} 18. Rd2 {[%clk 0:02:04]}  Qc7 {[%clk 0:02:11]} 19. Qc1 {[%clk 0:01:28]}  Rac8 {[%clk 0:02:03]} 20. Rc2 {[%clk 0:01:25]}  Rfd8 {[%clk 0:01:43]} 21. Bf4 {[%clk 0:01:18]}  Qb6 {[%clk 0:01:27]} 22. Be3 {[%clk 0:01:14]}  Nd4 {[%clk 0:01:00]} 23. Bxd4 {[%clk 0:01:12]}  Bxd4 {[%clk 0:00:56]} 24. Bxb7 {[%clk 0:01:09]}  Rxc2 {[%clk 0:00:41]} 25. Qxc2 {[%clk 0:00:56]}  Qxb7 {[%clk 0:00:40]} 26. Nxd4 {[%clk 0:00:34]}  Rxd4 {[%clk 0:00:40]} 27. Re1 {[%clk 0:00:34]}  Rd8 {[%clk 0:00:37]} 28. Qc5 {[%clk 0:00:32]}  Rc8 {[%clk 0:00:35]} 29. Qb4 {[%clk 0:00:30]}  Qc7 {[%clk 0:00:29]} 30. Re7 {[%clk 0:00:26]}  Qc1+ {[%clk 0:00:28]} 31. Re1 {[%clk 0:00:26]}  Qc5 {[%clk 0:00:29]} 32. Qb2 {[%clk 0:00:22]}  Qc3 {[%clk 0:00:22]} 33. Re8+ {[%clk 0:00:14]}  Kg7 {[%clk 0:00:21]} 34. Qe2 {[%clk 0:00:07]}  Rxe8 {[%clk 0:00:19]} 35. Qxe8 {[%clk 0:00:07]}  Qc1+ {[%clk 0:00:18]} 36. Kh2 {[%clk 0:00:07]}  Qc5 {[%clk 0:00:17]} 37. f3 {[%clk 0:00:05]}  a5 {[%clk 0:00:16]} 38. Qa8 {[%clk 0:00:04]}  b4 {[%clk 0:00:15]} 39. axb4 {[%clk 0:00:04]}  axb4 {[%clk 0:00:16]} 40. Qa2 {[%clk 0:00:03]}  Qe5+ {[%clk 0:00:16]} 41. Kh1 {[%clk 0:00:03]}  Qc3 {[%clk 0:00:16]} 42. Qd5 {[%clk 0:00:01]}  b3 {[%clk 0:00:16]} 0-1


[Site "https://www.chess.com"]

[Event "Titled Tuesday Blitz March 14 Late 2023"]
[White "Luberanski, Jakub"]
[Black "Simonovic, Miroslav"]
[WhiteFideId "21830509"]
[BlackFideId "919152"]
[WhiteElo "2256"]
[BlackElo "2042"]
[Result "1-0"]
[Round "06"]
[TimeControl "180+2"]
[Date "2023.03.14"]
[WhiteClock "0:00:08"]
[BlackClock "0:00:30"]

1. e4 {[%clk 0:02:31]}  c5 {[%clk 0:03:00]} 2. Nc3 {[%clk 0:02:28]}  Nc6 {[%clk 0:02:59]} 3. Bb5 {[%clk 0:02:20]}  g6 {[%clk 0:02:59]} 4. Bxc6 {[%clk 0:02:01]}  dxc6 {[%clk 0:03:00]} 5. d3 {[%clk 0:02:01]}  Bg7 {[%clk 0:03:00]} 6. f4 {[%clk 0:02:01]}  e5 {[%clk 0:02:57]} 7. Nf3 {[%clk 0:02:01]}  exf4 {[%clk 0:02:57]} 8. Bxf4 {[%clk 0:02:02]}  Ne7 {[%clk 0:02:56]} 9. O-O {[%clk 0:02:01]}  O-O {[%clk 0:02:56]} 10. Qe1 {[%clk 0:01:53]}  f5 {[%clk 0:02:54]} 11. Qh4 {[%clk 0:01:51]}  fxe4 {[%clk 0:02:44]} 12. Nxe4 {[%clk 0:01:44]}  Nf5 {[%clk 0:02:43]} 13. Qxd8 {[%clk 0:01:36]}  Rxd8 {[%clk 0:02:44]} 14. Nxc5 {[%clk 0:01:36]}  Bxb2 {[%clk 0:02:41]} 15. Rab1 {[%clk 0:01:36]}  b6 {[%clk 0:01:54]} 16. Rxb2 {[%clk 0:00:44]}  bxc5 {[%clk 0:01:54]} 17. Rfb1 {[%clk 0:00:43]}  Be6 {[%clk 0:01:42]} 18. Rb7 {[%clk 0:00:33]}  Bxa2 {[%clk 0:01:41]} 19. Ra1 {[%clk 0:00:31]}  Bd5 {[%clk 0:01:34]} 20. Ne5 {[%clk 0:00:18]}  Rdb8 {[%clk 0:01:21]} 21. Raxa7 {[%clk 0:00:13]}  Rxb7 {[%clk 0:01:16]} 22. Rxb7 {[%clk 0:00:13]}  Ra2 {[%clk 0:01:15]} 23. c4 {[%clk 0:00:11]}  Rxg2+ {[%clk 0:01:14]} 24. Kf1 {[%clk 0:00:09]}  Rc2 {[%clk 0:00:38]} 25. cxd5 {[%clk 0:00:09]}  cxd5 {[%clk 0:00:39]} 26. Nd7 {[%clk 0:00:08]}  Kf7 {[%clk 0:00:34]} 27. Nxc5+ {[%clk 0:00:08]}  Kf6 {[%clk 0:00:34]} 28. Nd7+ {[%clk 0:00:07]}  Ke6 {[%clk 0:00:34]} 29. Nf8+ {[%clk 0:00:08]}  Kf6 {[%clk 0:00:33]} 30. Nxh7+ {[%clk 0:00:09]}  Ke6 {[%clk 0:00:34]} 31. Ng5+ {[%clk 0:00:09]}  Kf6 {[%clk 0:00:34]} 32. Rb6+ {[%clk 0:00:10]}  Ke7 {[%clk 0:00:33]} 33. Rb7+ {[%clk 0:00:10]}  Kf6 {[%clk 0:00:30]} 34. Rf7# {[%clk 0:00:08]} 1-0


[Site "https://www.chess.com"]

[Event "Titled Tuesday Blitz March 14 Late 2023"]
[White "Eliteplayer3"]
[Black "Antonio, Jorge Carlos"]
[BlackFideId "113190"]
[WhiteElo "2073"]
[BlackElo "2247"]
[Result "1/2-1/2"]
[Round "06"]
[TimeControl "180+2"]
[Date "2023.03.14"]
[WhiteClock "0:01:34"]
[BlackClock "0:00:43"]

1. Nf3 {[%clk 0:03:00]}  d5 {[%clk 0:02:59]} 2. b3 {[%clk 0:03:01]}  c5 {[%clk 0:02:57]} 3. Bb2 {[%clk 0:03:02]}  f6 {[%clk 0:02:48]} 4. e3 {[%clk 0:03:03]}  e5 {[%clk 0:02:48]} 5. d4 {[%clk 0:03:03]}  cxd4 {[%clk 0:02:43]} 6. exd4 {[%clk 0:03:03]}  e4 {[%clk 0:02:42]} 7. Nfd2 {[%clk 0:03:04]}  f5 {[%clk 0:02:38]} 8. c4 {[%clk 0:03:04]}  Nf6 {[%clk 0:02:37]} 9. Nc3 {[%clk 0:03:04]}  Be6 {[%clk 0:02:31]} 10. cxd5 {[%clk 0:03:02]}  Nxd5 {[%clk 0:02:26]} 11. Be2 {[%clk 0:03:03]}  Nc6 {[%clk 0:02:24]} 12. Nc4 {[%clk 0:03:02]}  Bb4 {[%clk 0:02:13]} 13. Rc1 {[%clk 0:03:01]}  O-O {[%clk 0:02:11]} 14. O-O {[%clk 0:03:00]}  Nf4 {[%clk 0:02:05]} 15. Ne3 {[%clk 0:02:50]}  Bxc3 {[%clk 0:01:55]} 16. Bxc3 {[%clk 0:02:49]}  Nd5 {[%clk 0:01:53]} 17. Nxd5 {[%clk 0:02:47]}  Bxd5 {[%clk 0:01:50]} 18. Bc4 {[%clk 0:02:47]}  Ne7 {[%clk 0:01:47]} 19. Bb4 {[%clk 0:02:44]}  Re8 {[%clk 0:01:42]} 20. Bxe7 {[%clk 0:02:23]}  Rxe7 {[%clk 0:01:41]} 21. Bxd5+ {[%clk 0:02:24]}  Qxd5 {[%clk 0:01:40]} 22. Rc5 {[%clk 0:02:25]}  Qd6 {[%clk 0:01:40]} 23. Rxf5 {[%clk 0:02:24]}  Rd8 {[%clk 0:01:37]} 24. d5 {[%clk 0:02:21]}  g6 {[%clk 0:01:35]} 25. Rg5 {[%clk 0:02:19]}  h6 {[%clk 0:01:34]} 26. Rg3 {[%clk 0:02:19]}  Kh7 {[%clk 0:01:33]} 27. Qg4 {[%clk 0:02:16]}  Re5 {[%clk 0:01:22]} 28. Rd1 {[%clk 0:02:12]}  h5 {[%clk 0:01:17]} 29. Qf4 {[%clk 0:02:06]}  Rd7 {[%clk 0:01:11]} 30. h3 {[%clk 0:01:59]}  Rxd5 {[%clk 0:00:58]} 31. Rxd5 {[%clk 0:01:38]}  Qxf4 {[%clk 0:00:47]} 32. Rxd7+ {[%clk 0:01:38]}  Kh6 {[%clk 0:00:47]} 33. Rxb7 {[%clk 0:01:39]}  Qc1+ {[%clk 0:00:46]} 34. Kh2 {[%clk 0:01:38]}  Qf4 {[%clk 0:00:44]} 35. Kg1 {[%clk 0:01:35]}  Qc1+ {[%clk 0:00:43]} 36. Kh2 {[%clk 0:01:34]}  Qf4 {[%clk 0:00:43]} 37. Kg1 {[%clk 0:01:34]} 1/2-1/2


[Site "https://www.chess.com"]

[Event "Titled Tuesday Blitz March 14 Late 2023"]
[White "Dorato, Adriano"]
[Black "Tsyhanchuk, Stanislav"]
[WhiteFideId "2802894"]
[BlackFideId "13505130"]
[WhiteElo "1709"]
[BlackElo "2173"]
[Result "0-1"]
[Round "06"]
[TimeControl "180+2"]
[Date "2023.03.14"]
[WhiteClock "0:00:02"]
[BlackClock "0:00:08"]

1. d4 {[%clk 0:03:00]}  Nf6 {[%clk 0:02:59]} 2. Nf3 {[%clk 0:03:00]}  e6 {[%clk 0:02:58]} 3. e3 {[%clk 0:03:00]}  d5 {[%clk 0:02:57]} 4. Bd3 {[%clk 0:03:01]}  c5 {[%clk 0:02:57]} 5. O-O {[%clk 0:03:00]}  Nc6 {[%clk 0:02:57]} 6. c3 {[%clk 0:02:59]}  Be7 {[%clk 0:02:46]} 7. Nbd2 {[%clk 0:02:56]}  b6 {[%clk 0:02:40]} 8. Qe2 {[%clk 0:02:54]}  O-O {[%clk 0:02:39]} 9. e4 {[%clk 0:02:53]}  dxe4 {[%clk 0:02:30]} 10. Nxe4 {[%clk 0:02:52]}  cxd4 {[%clk 0:02:30]} 11. Nxf6+ {[%clk 0:02:48]}  Bxf6 {[%clk 0:02:30]} 12. Qe4 {[%clk 0:02:48]}  g6 {[%clk 0:02:29]} 13. Qxc6 {[%clk 0:02:48]}  Bd7 {[%clk 0:02:29]} 14. Qe4 {[%clk 0:02:36]}  dxc3 {[%clk 0:02:28]} 15. bxc3 {[%clk 0:02:34]}  Bxc3 {[%clk 0:02:28]} 16. Rb1 {[%clk 0:02:34]}  Rc8 {[%clk 0:02:26]} 17. Bh6 {[%clk 0:02:33]}  Bc6 {[%clk 0:02:17]} 18. Qe3 {[%clk 0:02:26]}  Re8 {[%clk 0:02:14]} 19. Rfd1 {[%clk 0:02:26]}  Qf6 {[%clk 0:02:06]} 20. Bg5 {[%clk 0:02:07]}  Qg7 {[%clk 0:02:01]} 21. Be4 {[%clk 0:02:05]}  Bxe4 {[%clk 0:01:47]} 22. Qxe4 {[%clk 0:02:04]}  f6 {[%clk 0:01:47]} 23. Be3 {[%clk 0:01:56]}  f5 {[%clk 0:01:45]} 24. Qd3 {[%clk 0:01:50]}  e5 {[%clk 0:01:42]} 25. Qd7 {[%clk 0:01:24]}  f4 {[%clk 0:01:22]} 26. Qxg7+ {[%clk 0:01:05]}  Kxg7 {[%clk 0:01:23]} 27. Rd7+ {[%clk 0:01:05]}  Kf6 {[%clk 0:01:22]} 28. Bd2 {[%clk 0:01:02]}  Bxd2 {[%clk 0:01:18]} 29. Rxd2 {[%clk 0:00:51]}  e4 {[%clk 0:01:15]} 30. Ne1 {[%clk 0:00:30]}  g5 {[%clk 0:00:49]} 31. Rbd1 {[%clk 0:00:27]}  Re6 {[%clk 0:00:38]} 32. h3 {[%clk 0:00:18]}  h5 {[%clk 0:00:34]} 33. Nc2 {[%clk 0:00:17]}  Rec6 {[%clk 0:00:15]} 34. Nb4 {[%clk 0:00:14]}  Re6 {[%clk 0:00:12]} 35. Rd6 {[%clk 0:00:14]}  a5 {[%clk 0:00:10]} 36. Rxe6+ {[%clk 0:00:13]}  Kxe6 {[%clk 0:00:10]} 37. Nd5 {[%clk 0:00:11]}  b5 {[%clk 0:00:06]} 38. Kf1 {[%clk 0:00:10]}  b4 {[%clk 0:00:06]} 39. Ke2 {[%clk 0:00:09]}  Rc6 {[%clk 0:00:05]} 40. Rd2 {[%clk 0:00:08]}  Ke5 {[%clk 0:00:02]} 41. f3 {[%clk 0:00:08]}  e3 {[%clk 0:00:02]} 42. Rd1 {[%clk 0:00:04]}  Rc2+ {[%clk 0:00:02]} 43. Ke1 {[%clk 0:00:03]}  Rxg2 {[%clk 0:00:02]} 44. Nb6 {[%clk 0:00:01]}  Rxa2 {[%clk 0:00:01]} 45. Nc4+ {[%clk 0:00:01]}  Ke6 {[%clk 0:00:01]} 46. Rd6+ {[%clk 0:00:01]}  Ke7 {[%clk 0:00:01]} 47. Rd5 {[%clk 0:00:01]}  b3 {[%clk 0:00:01]} 48. Rxg5 {[%clk 0:00:01]}  b2 {[%clk 0:00:02]} 49. Nxb2 {[%clk 0:00:02]}  Rxb2 {[%clk 0:00:02]} 50. Rxa5 {[%clk 0:00:02]}  Rh2 {[%clk 0:00:02]} 51. Rxh5 {[%clk 0:00:02]}  Kf6 {[%clk 0:00:01]} 52. Kf1 {[%clk 0:00:01]}  Kg6 {[%clk 0:00:01]} 53. Rh4 {[%clk 0:00:02]}  Kg5 {[%clk 0:00:02]} 54. Rh8 {[%clk 0:00:02]}  Kf5 {[%clk 0:00:02]} 55. Rh5+ {[%clk 0:00:01]}  Kf6 {[%clk 0:00:02]} 56. Rh8 {[%clk 0:00:02]}  Ke5 {[%clk 0:00:03]} 57. Ke1 {[%clk 0:00:02]}  Kd4 {[%clk 0:00:04]} 58. h4 {[%clk 0:00:02]}  Rh1+ {[%clk 0:00:02]} 59. Ke2 {[%clk 0:00:02]}  Rh2+ {[%clk 0:00:03]} 60. Ke1 {[%clk 0:00:01]}  e2 {[%clk 0:00:04]} 61. Rd8+ {[%clk 0:00:01]}  Ke3 {[%clk 0:00:04]} 62. Re8+ {[%clk 0:00:01]}  Kxf3 {[%clk 0:00:05]} 63. h5 {[%clk 0:00:01]}  Rh1+ {[%clk 0:00:05]} 64. Kd2 {[%clk 0:00:01]}  Rd1+ {[%clk 0:00:06]} 65. Kc2 {[%clk 0:00:01]}  e1=Q {[%clk 0:00:06]} 66. Rxe1 {[%clk 0:00:01]}  Rxe1 {[%clk 0:00:07]} 67. h6 {[%clk 0:00:02]}  Re8 {[%clk 0:00:08]} 0-1


[Site "https://www.chess.com"]

[Event "Titled Tuesday Blitz March 14 Late 2023"]
[White "Vargas Pereda, Jesus Manue"]
[Black "Clawitter, Craig"]
[WhiteFideId "5115710"]
[BlackFideId "2023105"]
[WhiteElo "1914"]
[BlackElo "2246"]
[Result "1-0"]
[Round "06"]
[TimeControl "180+2"]
[Date "2023.03.14"]
[WhiteClock "0:00:47"]
[BlackClock "0:00:53"]

1. d4 {[%clk 0:03:00]}  e6 {[%clk 0:03:00]} 2. Bf4 {[%clk 0:02:58]}  Nf6 {[%clk 0:03:00]} 3. e3 {[%clk 0:02:57]}  b6 {[%clk 0:03:00]} 4. Nf3 {[%clk 0:02:54]}  Bb7 {[%clk 0:03:00]} 5. Bd3 {[%clk 0:02:54]}  Be7 {[%clk 0:03:00]} 6. Nbd2 {[%clk 0:02:53]}  Nh5 {[%clk 0:03:01]} 7. Be5 {[%clk 0:02:48]}  d6 {[%clk 0:03:01]} 8. Bg3 {[%clk 0:02:42]}  Nd7 {[%clk 0:02:57]} 9. O-O {[%clk 0:02:39]}  Nxg3 {[%clk 0:02:55]} 10. hxg3 {[%clk 0:02:37]}  O-O {[%clk 0:02:55]} 11. e4 {[%clk 0:02:32]}  c5 {[%clk 0:02:50]} 12. c3 {[%clk 0:02:28]}  a6 {[%clk 0:02:50]} 13. Qe2 {[%clk 0:02:16]}  b5 {[%clk 0:02:48]} 14. a4 {[%clk 0:02:07]}  b4 {[%clk 0:02:42]} 15. e5 {[%clk 0:01:53]}  bxc3 {[%clk 0:02:33]} 16. bxc3 {[%clk 0:01:52]}  cxd4 {[%clk 0:01:48]} 17. cxd4 {[%clk 0:01:51]}  dxe5 {[%clk 0:01:48]} 18. dxe5 {[%clk 0:01:48]}  Nc5 {[%clk 0:01:47]} 19. Bc2 {[%clk 0:01:39]}  Qd5 {[%clk 0:01:40]} 20. Rfd1 {[%clk 0:01:34]}  Rfd8 {[%clk 0:01:30]} 21. Ne4 {[%clk 0:01:23]}  Qc6 {[%clk 0:01:29]} 22. Nxc5 {[%clk 0:01:14]}  Bxc5 {[%clk 0:01:26]} 23. Rac1 {[%clk 0:01:10]}  Rac8 {[%clk 0:01:14]} 24. Nh4 {[%clk 0:00:55]}  Rxd1+ {[%clk 0:01:04]} 25. Rxd1 {[%clk 0:00:54]}  Bxf2+ {[%clk 0:01:00]} 26. Qxf2 {[%clk 0:00:51]}  g5 {[%clk 0:01:00]} 27. Bxh7+ {[%clk 0:00:47]}  Kxh7 {[%clk 0:00:56]} 28. Qxf7+ {[%clk 0:00:47]}  Kh8 {[%clk 0:00:53]} 29. Ng6# {[%clk 0:00:47]} 1-0


[Site "https://www.chess.com"]